bitfinex-derivatives/quotes_BTCF0:USTF0_20241117
["timestamp","ask_amount","ask_price","bid_price","bid_amount"]
[1731859829572,0.09552369,90217.0,90213.0,0.25441646]
[1731859830088,0.13226954,90221.0,90213.0,0.25441646]
[1731859830395,0.13226954,90221.0,90213.0,0.19899546]
[1731859830688,0.05542,90215.0,90213.0,0.19899546]
[1731859830884,0.13226954,90221.0,90212.0,0.19899546]
[1731859830885,0.055421,90213.0,90212.0,0.19899546]
[1731859831183,0.055421,90213.0,90211.0,0.19899546]
[1731859832387,0.00013417,90221.0,90206.0,0.25442046]
[1731859832579,0.055422,90212.0,90206.0,0.19899546]
[1731859832778,0.055422,90212.0,90207.0,0.055424]
[1731859832980,0.055422,90212.0,90207.0,0.25441946]
[1731859833278,0.00013417,90221.0,90207.0,0.25441946]
[1731859833279,0.055422,90211.0,90207.0,0.25441946]
[1731859833480,0.13226954,90221.0,90210.0,0.3608]
[1731859833675,0.00013417,90221.0,90220.0,0.055417]
[1731859834088,0.00013417,90221.0,90220.0,0.25441246]
[1731859834479,0.00013417,90221.0,90220.0,0.055417]
[1731859834985,0.00013417,90221.0,90220.0,0.32071111]
[1731859835587,0.00013417,90221.0,90220.0,0.68151111]
[1731859835788,0.00013417,90221.0,90220.0,0.68173591]
[1731859836589,0.00013417,90221.0,90220.0,0.416217]
[1731859837086,0.001663,90231.0,90230.0,0.055411]
[1731859837290,0.001663,90231.0,90230.0,0.416211]
[1731859837886,0.001663,90231.0,90230.0,0.61535643]
[1731859838090,0.00012027,90231.0,90229.0,0.19914543]
[1731859838284,0.00012027,90231.0,90227.0,0.19914543]
[1731859838488,0.055411,90229.0,90227.0,0.19914543]
[1731859838794,0.055411,90229.0,90221.0,0.362]
[1731859838795,0.088412,90228.0,90226.0,0.19914543]
[1731859839090,0.088412,90228.0,90221.0,0.62635195]
[1731859839091,0.055416,90222.0,90221.0,0.00116]
[1731859839292,0.055416,90222.0,90218.0,0.19914543]
[1731859839596,0.13213537,90226.0,90222.0,0.055415]
[1731859839780,0.12612369,90227.0,90218.0,0.19914543]
[1731859839986,0.11708593,90228.0,90224.0,0.055414]
[1731859841186,0.055413,90227.0,90220.0,0.19914543]
[1731859841388,0.055413,90226.0,90221.0,0.19914543]
[1731859841797,0.055413,90226.0,90219.0,0.25456243]
[1731859842092,0.09552369,90226.0,90222.0,0.19914543]
[1731859842292,0.09552369,90226.0,90221.0,0.19914543]
[1731859842493,0.055416,90223.0,90221.0,0.19914543]
[1731859842892,0.16513537,90228.0,90221.0,0.19914543]
[1731859843094,0.16513537,90228.0,90215.0,0.62635195]
[1731859843095,0.00012027,90231.0,90225.0,0.19914543]
[1731859843298,0.00012027,90231.0,90230.0,0.055411]
[1731859844094,0.00012027,90231.0,90230.0,0.25455643]
[1731859844403,0.00012027,90231.0,90230.0,0.055411]
[1731859846898,0.00012027,90231.0,90230.0,0.25449664]
[1731859847099,0.00012027,90231.0,90230.0,0.055411]
[1731859848003,0.13213537,90247.0,90230.0,0.32096295]
[1731859848308,0.13213537,90251.0,90248.0,0.0554]
[1731859848491,0.0331,90253.0,90248.0,0.0554]
[1731859848802,0.00060001,90256.0,90254.0,0.055396]
[1731859849012,0.00166272,90257.0,90256.0,0.055395]
[1731859849301,0.00174518,90257.0,90256.0,0.055395]
[1731859849506,0.00174518,90257.0,90250.0,0.055398]
[1731859849798,0.00174518,90257.0,90247.0,0.19906162]
[1731859850009,0.00174518,90257.0,90246.0,0.19906162]
[1731859850204,0.00174518,90257.0,90243.0,0.32095495]
[1731859850205,0.0554,90248.0,90243.0,0.32095495]
[1731859850498,0.0554,90248.0,90243.0,0.055403]
[1731859850704,0.13213537,90256.0,90242.0,0.28824034]
[1731859850705,0.22765906,90256.0,90245.0,0.055401]
[1731859850902,0.055397,90253.0,90245.0,0.055401]
[1731859851106,0.055397,90253.0,90241.0,0.3608]
[1731859851107,0.09552369,90248.0,90241.0,0.3608]
[1731859851297,0.055403,90242.0,90237.0,0.055406]
[1731859851602,0.055403,90242.0,90230.0,0.26555195]
[1731859851603,0.055409,90233.0,90230.0,0.19888034]
[1731859851898,0.09552369,90233.0,90227.0,0.055412]
[1731859852103,0.055407,90237.0,90229.0,0.055411]
[1731859852802,0.09552369,90240.0,90224.0,0.19888034]
[1731859853102,0.055409,90233.0,90225.0,0.055414]
[1731859853299,0.055409,90233.0,90223.0,0.22105836]
[1731859853600,0.0327,90241.0,90223.0,0.22105836]
[1731859853601,0.16483537,90241.0,90232.0,0.3608]
[1731859853790,0.0327,90241.0,90237.0,0.055406]
[1731859853992,0.0327,90241.0,90238.0,0.055406]
[1731859854910,0.0327,90241.0,90232.0,0.3608]
[1731859854911,0.0327,90241.0,90233.0,0.031]
[1731859855798,0.055405,90240.0,90233.0,0.031]
[1731859855999,0.055405,90239.0,90233.0,0.031]
[1731859856205,0.055407,90236.0,90233.0,0.031]
[1731859856397,0.055407,90236.0,90228.0,0.19888034]
[1731859856604,0.0327,90241.0,90226.0,0.0306]
[1731859856605,0.088104,90241.0,90232.0,0.055409]
[1731859856805,0.0327,90241.0,90232.0,0.055409]
[1731859856996,0.055405,90240.0,90232.0,0.055409]
[1731859857200,0.055405,90239.0,90232.0,0.055409]
[1731859857701,0.0327,90241.0,90233.0,0.3608]
[1731859858006,0.055405,90240.0,90233.0,0.3608]
[1731859858303,0.0327,90241.0,90233.0,0.3608]
[1731859858497,0.0327,90241.0,90238.0,0.055406]
[1731859858696,0.0327,90241.0,90239.0,0.055405]
[1731859859596,0.088104,90241.0,90234.0,0.055408]
[1731859859796,0.088104,90241.0,90235.0,0.055407]
[1731859860399,0.0327,90241.0,90233.0,0.55968034]
[1731859860599,0.0327,90241.0,90240.0,0.055405]
[1731859861198,0.088,90247.0,90240.0,0.055405]
[1731859862013,0.3608,90246.0,90235.0,0.19888034]
[1731859862210,0.055404,90241.0,90234.0,0.055408]
[1731859862411,0.055408,90235.0,90233.0,0.56084034]
[1731859862599,0.3608,90246.0,90231.0,0.19902137]
[1731859862600,0.09552369,90234.0,90231.0,0.19902137]
[1731859862910,0.09552369,90234.0,90231.0,0.05541]
[1731859863115,0.09552369,90234.0,90229.0,0.19902137]
[1731859863413,0.15093169,90234.0,90229.0,0.19902137]
[1731859863611,0.055409,90233.0,90230.0,0.19902137]
[1731859863912,0.12632369,90234.0,90227.0,0.19902137]
[1731859864101,0.09552369,90226.0,90223.0,0.26555195]
[1731859864413,0.09552369,90226.0,90221.0,0.20076401]
[1731859864414,0.055416,90222.0,90221.0,0.20076401]
[1731859864717,0.416212,90228.0,90224.0,0.055414]
[1731859865011,0.055412,90228.0,90227.0,0.3608]
[1731859865911,0.05541,90232.0,90229.0,0.055411]
[1731859866109,0.0308,90234.0,90229.0,0.055411]
[1731859866309,0.055409,90233.0,90229.0,0.055411]
[1731859867110,0.055411,90229.0,90228.0,0.19910156]
[1731859867324,0.12632369,90234.0,90225.0,0.19909826]
[1731859867325,0.055413,90226.0,90225.0,0.19909826]
[1731859867609,0.055416,90222.0,90221.0,0.00166245]
[1731859867810,0.416216,90222.0,90221.0,0.00166245]
[1731859870611,0.748736,90222.0,90221.0,0.00166245]
[1731859870810,0.055425,90207.0,90206.0,0.19909826]
[1731859871016,0.055425,90207.0,90205.0,8.211e-05]
[1731859871017,0.3608,90207.0,90205.0,8.211e-05]
[1731859871208,0.120025,90206.0,90205.0,8.211e-05]
[1731859874523,0.0646,90206.0,90205.0,8.211e-05]
[1731859874711,0.416221,90213.0,90206.0,0.055425]
[1731859874918,0.3608,90213.0,90206.0,0.055425]
[1731859875825,0.08836,90219.0,90207.0,0.055424]
[1731859876015,0.055421,90213.0,90209.0,0.055423]
[1731859879022,0.055425,90206.0,90205.0,8.211e-05]
[1731859881119,0.416225,90206.0,90205.0,8.211e-05]
[1731859882913,0.416225,90206.0,90190.0,0.20076134]
[1731859882914,0.055435,90191.0,90190.0,0.00166308]
[1731859883222,0.055435,90191.0,90174.0,0.0012]
[1731859883413,0.055435,90191.0,90173.0,0.19909826]
[1731859883414,0.055443,90178.0,90177.0,0.055443]
[1731859883621,0.055443,90178.0,90172.0,0.00236]
[1731859883622,0.0611,90190.0,90172.0,0.00116]
[1731859883623,0.055446,90173.0,90172.0,0.00116]
[1731859883926,0.055444,90176.0,90172.0,0.00013194]
[1731859884227,0.15096969,90173.0,90172.0,0.00013194]
[1731859884619,0.055446,90173.0,90172.0,0.00013194]
[1731859886826,0.3608,90177.0,90172.0,0.00013194]
[1731859887029,0.3926,90186.0,90172.0,0.00013194]
[1731859887332,0.055445,90174.0,90172.0,0.00013194]
[1731859890517,0.3608,90178.0,90172.0,0.05557794]
[1731859890722,0.51619085,90186.0,90180.0,0.055441]
[1731859890723,0.055439,90184.0,90180.0,0.055441]
[1731859891423,0.055439,90184.0,90176.0,0.3608]
[1731859891424,0.3608,90186.0,90176.0,0.3608]
[1731859891723,0.055441,90182.0,90176.0,0.416243]
[1731859892116,0.055441,90182.0,90178.0,0.055443]
[1731859892730,0.3608,90186.0,90180.0,0.055441]
[1731859893036,0.416238,90186.0,90180.0,0.055441]
[1731859893228,0.416238,90186.0,90176.0,0.3608]
[1731859893229,0.05544,90183.0,90176.0,0.3608]
[1731859893427,0.055441,90182.0,90177.0,0.055443]
[1731859893935,0.055443,90178.0,90176.0,0.3608]
[1731859894425,0.055446,90174.0,90172.0,0.00013194]
[1731859894936,0.09552369,90180.0,90172.0,0.00013194]
[1731859895136,0.055443,90178.0,90172.0,0.00013194]
[1731859895431,0.055443,90178.0,90176.0,0.3608]
[1731859897431,0.12409048,90180.0,90176.0,0.3608]
[1731859897432,0.055443,90177.0,90176.0,0.3608]
[1731859901526,0.055442,90179.0,90176.0,0.3608]
[1731859901845,0.055443,90177.0,90176.0,0.3608]
[1731859903932,0.055443,90177.0,90172.0,0.05557794]
[1731859904136,0.055444,90176.0,90173.0,0.3608]
[1731859904336,0.055445,90175.0,90173.0,0.3608]
[1731859905031,0.055445,90175.0,90172.0,0.41637794]
[1731859905433,0.12409048,90180.0,90172.0,0.36093194]
[1731859905732,0.055443,90178.0,90175.0,0.055444]
[1731859905932,0.055443,90177.0,90172.0,0.36093194]
[1731859906436,0.055443,90177.0,90173.0,0.055445]
[1731859906939,0.12409048,90180.0,90172.0,0.5612302]
[1731859907142,0.055445,90175.0,90172.0,0.5600302]
[1731859907326,0.055445,90175.0,90172.0,0.36093194]
[1731859907528,0.055445,90175.0,90173.0,0.19909826]
[1731859907733,0.055445,90174.0,90173.0,0.19909826]
[1731859907940,0.055445,90174.0,90172.0,0.5600302]
[1731859908449,0.055445,90174.0,90172.0,0.36093194]
[1731859909343,0.055446,90173.0,90172.0,0.36093194]
[1731859909540,0.055446,90173.0,90172.0,0.55999986]
[1731859909736,0.055446,90173.0,90172.0,0.36093194]
[1731859909943,0.055446,90173.0,90172.0,0.55999986]
[1731859910442,0.055446,90173.0,90172.0,0.36093194]
[1731859910743,0.055442,90179.0,90172.0,0.36093194]
[1731859910931,0.02856679,90180.0,90176.0,0.055444]
[1731859911143,0.055438,90185.0,90176.0,0.416244]
[1731859911435,0.055443,90178.0,90177.0,0.19923662]
[1731859911629,0.055443,90178.0,90175.0,0.19923662]
[1731859911630,0.15096669,90178.0,90175.0,0.19923662]
[1731859911834,0.055444,90176.0,90175.0,0.19923662]
[1731859912041,0.055446,90173.0,90172.0,0.00013194]
[1731859914432,0.388126,90173.0,90163.0,0.19933884]
[1731859914633,0.388126,90173.0,90158.0,0.055455]
[1731859914634,0.055453,90161.0,90160.0,0.19933884]
[1731859914834,0.055453,90161.0,90160.0,0.055454]
[1731859915431,0.09552369,90165.0,90164.0,0.055451]
[1731859915632,0.0329,90167.0,90166.0,0.05545]
[1731859916449,0.02806839,90173.0,90162.0,0.19938605]
[1731859916649,0.09552369,90172.0,90167.0,0.055449]
[1731859916836,0.13231058,90173.0,90172.0,0.055446]
[1731859917249,0.18775558,90174.0,90172.0,0.055446]
[1731859917549,0.055445,90174.0,90172.0,0.055446]
[1731859917950,0.22783427,90175.0,90172.0,0.055446]
[1731859918146,0.22783427,90175.0,90168.0,0.19938605]
[1731859918337,0.22783427,90175.0,90173.0,0.055445]
[1731859918649,0.13231058,90175.0,90173.0,0.055445]
[1731859918850,0.13231058,90175.0,90174.0,0.055445]
[1731859919944,0.13231058,90177.0,90174.0,0.055445]
[1731859920335,0.055444,90176.0,90170.0,0.19938605]
[1731859920532,0.055445,90175.0,90170.0,0.25483305]
[1731859920742,0.055445,90175.0,90170.0,0.19938605]
[1731859920945,0.055445,90174.0,90169.0,0.19938605]
[1731859921143,0.055445,90174.0,90173.0,0.19938605]
[1731859921834,0.055445,90174.0,90173.0,0.19934576]
[1731859922239,0.055445,90174.0,90167.0,0.26555195]
[1731859922451,0.055445,90174.0,90173.0,0.055446]
[1731859922946,0.22783427,90176.0,90173.0,0.055446]
[1731859923145,0.22783427,90176.0,90174.0,0.19934881]
[1731859923745,0.09552369,90176.0,90173.0,0.055446]
[1731859926044,0.09552369,90176.0,90174.0,0.055445]
[1731859926653,0.13231058,90180.0,90173.0,0.19936882]
[1731859926844,0.06057092,90183.0,90168.0,0.3608]
[1731859926845,0.18775058,90182.0,90177.0,0.055443]
[1731859928848,0.18775058,90182.0,90176.0,0.19936882]
[1731859929159,0.13231058,90186.0,90183.0,0.05544]
[1731859929454,0.13231058,90187.0,90181.0,0.19936882]
[1731859929660,0.13231058,90191.0,90190.0,0.055435]
[1731859930047,0.13231058,90192.0,90190.0,0.055435]
[1731859930451,0.13231058,90193.0,90191.0,0.416234]
[1731859930644,0.1609601,90196.0,90194.0,0.055433]
[1731859930849,0.13231058,90198.0,90194.0,0.055433]
[1731859931049,0.03286388,90199.0,90194.0,0.25480182]
[1731859931349,0.03286388,90199.0,90194.0,0.055433]
[1731859931748,0.08829388,90199.0,90194.0,0.055433]
[1731859931946,0.05543,90198.0,90194.0,0.055433]
[1731859932560,0.06155,90199.0,90191.0,0.56132882]
[1731859932750,0.06155,90199.0,90196.0,0.055431]
[1731859933349,0.3608,90197.0,90188.0,0.19936882]
[1731859933658,0.3608,90197.0,90173.0,0.3608]
[1731859933659,0.055442,90179.0,90173.0,0.3608]
[1731859933851,0.055439,90184.0,90179.0,0.055442]
[1731859934444,0.0316,90187.0,90183.0,0.055439]
[1731859934651,0.0316,90187.0,90185.0,0.055438]
[1731859934953,0.18752293,90190.0,90185.0,0.055438]
[1731859935161,0.055435,90190.0,90185.0,0.055438]
[1731859935452,0.13208793,90191.0,90181.0,0.3608]
[1731859935653,0.02776209,90191.0,90189.0,0.055435]
[1731859935857,0.13375181,90199.0,90182.0,0.0878]
[1731859935858,0.00166388,90199.0,90191.0,0.055434]
[1731859936057,0.09552369,90197.0,90190.0,0.3919]
[1731859936450,0.09552369,90197.0,90195.0,0.055432]
[1731859936853,0.09552369,90197.0,90186.0,0.26555195]
[1731859937047,0.09552369,90187.0,90181.0,0.3608]
[1731859937250,0.055441,90181.0,90175.0,0.055444]
[1731859937448,0.055441,90181.0,90177.0,0.055443]
[1731859937655,0.064,90186.0,90172.0,0.0304]
[1731859937853,0.064,90186.0,90173.0,0.01040131]
[1731859938054,0.064,90186.0,90173.0,0.055445]
[1731859938055,0.055439,90184.0,90173.0,0.055445]
[1731859938358,0.055439,90184.0,90181.0,0.05544]
[1731859938547,0.064,90186.0,90184.0,0.055439]
[1731859939755,0.0331,90186.0,90184.0,0.055439]
[1731859941761,0.3608,90190.0,90189.0,0.055436]
[1731859942661,0.3608,90190.0,90174.0,0.26555195]
[1731859942964,0.3608,90190.0,90171.0,0.3608]
[1731859942965,0.055443,90178.0,90173.0,0.055446]
[1731859943164,0.055443,90178.0,90171.0,0.3608]
[1731859943355,0.0311,90180.0,90175.0,0.055444]
[1731859943666,0.0311,90180.0,90171.0,0.3608]
[1731859943858,0.0311,90180.0,90176.0,0.055444]
[1731859944164,0.0311,90180.0,90171.0,0.416247]
[1731859944165,0.055442,90179.0,90171.0,0.416247]
[1731859944366,0.055442,90179.0,90175.0,0.055444]
[1731859945363,0.088542,90179.0,90175.0,0.055444]
[1731859946059,0.055444,90177.0,90172.0,0.055446]
[1731859946262,0.055444,90177.0,90171.0,0.3608]
[1731859946566,0.0331,90179.0,90176.0,0.055444]
[1731859947963,0.18752393,90189.0,90181.0,0.05544]
[1731859948260,0.36656001,90190.0,90171.0,0.36196]
[1731859948261,0.00056001,90190.0,90186.0,0.055438]
[1731859948761,0.13208793,90196.0,90192.0,0.055434]
[1731859948964,0.055431,90197.0,90192.0,0.055434]
[1731859948965,0.18751893,90197.0,90192.0,0.055434]
[1731859949168,0.055431,90197.0,90192.0,0.055434]
[1731859949661,0.13208793,90197.0,90192.0,0.055434]
[1731859949858,0.055432,90195.0,90192.0,0.055434]
[1731859950053,0.13208793,90197.0,90189.0,0.3608]
[1731859950452,0.055435,90191.0,90189.0,0.3608]
[1731859950652,0.055435,90190.0,90189.0,0.3608]
[1731859951366,0.3608,90190.0,90178.0,0.055442]
[1731859951569,0.09552369,90181.0,90179.0,0.055442]
[1731859952268,0.09552369,90181.0,90174.0,0.26555195]
[1731859952466,0.055437,90187.0,90184.0,0.055439]
[1731859952766,0.18332369,90189.0,90181.0,0.3608]
[1731859952767,0.13223608,90189.0,90181.0,0.3608]
[1731859952963,0.055438,90185.0,90181.0,0.3608]
[1731859953465,0.055438,90185.0,90182.0,0.05544]
[1731859954367,0.055438,90185.0,90183.0,0.05544]
[1731859954773,0.055438,90185.0,90181.0,0.3608]
[1731859954962,0.055439,90184.0,90181.0,0.3608]
[1731859955365,0.055439,90184.0,90182.0,0.05544]
[1731859955666,0.22775977,90188.0,90182.0,0.05544]
[1731859956567,0.28319677,90188.0,90183.0,0.055439]
[1731859956761,0.28319677,90188.0,90181.0,0.3608]
[1731859957064,0.13223608,90190.0,90187.0,0.055437]
[1731859957266,0.13223608,90192.0,90181.0,0.62635195]
[1731859957476,0.13223608,90193.0,90183.0,0.26555195]
[1731859957670,0.13223608,90194.0,90191.0,0.055434]
[1731859957871,0.09552369,90195.0,90191.0,0.055434]
[1731859958258,0.13223608,90196.0,90190.0,0.3608]
[1731859958460,0.16052029,90197.0,90195.0,0.055432]
[1731859958671,0.13223608,90197.0,90195.0,0.055432]
[1731859959989,0.13223608,90197.0,90181.0,0.69345836]
[1731859959990,0.7812,90196.0,90181.0,0.00124]
[1731859960280,0.45632369,90182.0,90173.0,0.26555195]
[1731859960478,0.1323129,90179.0,90168.0,0.32100095]
[1731859960868,0.055448,90170.0,90168.0,0.32100095]
[1731859961067,0.055448,90170.0,90169.0,0.055448]
[1731859961566,0.1323129,90179.0,90168.0,0.26555195]
[1731859961765,0.1323129,90179.0,90178.0,0.416243]
[1731859961967,0.1375129,90193.0,90190.0,0.055435]
[1731859962175,0.055433,90193.0,90186.0,0.2657659]
[1731859962475,0.055433,90193.0,90186.0,0.3212029]
[1731859962869,0.055433,90193.0,90187.0,0.2657659]
[1731859963180,0.1323129,90199.0,90193.0,0.055433]
[1731859963671,0.055432,90195.0,90189.0,0.6265659]
[1731859963877,0.1323129,90199.0,90189.0,0.6265659]
[1731859963878,0.055434,90193.0,90189.0,0.6265659]
[1731859964779,0.09552369,90196.0,90191.0,0.055434]
[1731859966272,0.09552369,90196.0,90189.0,0.6277259]
[1731859966469,0.1323129,90201.0,90195.0,0.055432]
[1731859966674,0.05543,90198.0,90195.0,0.055432]
[1731859966982,0.05543,90198.0,90192.0,0.055434]
[1731859967177,0.1323129,90202.0,90190.0,0.2657659]
[1731859967495,0.055429,90200.0,90195.0,0.055432]
[1731859967670,0.05543,90198.0,90190.0,0.3212009]
[1731859967870,0.05543,90198.0,90190.0,0.2657659]
[1731859968069,0.055431,90197.0,90191.0,0.055435]
[1731859968365,0.055431,90197.0,90191.0,0.3212009]
[1731859968568,0.055431,90197.0,90191.0,0.055435]
[1731859968780,0.055431,90197.0,90193.0,0.055433]
[1731859969176,0.1323129,90202.0,90196.0,0.09552369]
[1731859969380,0.00166331,90208.0,90205.0,0.055426]
[1731859969575,0.00166331,90208.0,90205.0,0.416226]
[1731859970180,0.00166331,90208.0,90205.0,0.68170571]
[1731859970478,0.00166331,90208.0,90205.0,0.416226]
[1731859970678,0.00166331,90208.0,90205.0,0.3608]
[1731859970878,0.05554557,90206.0,90205.0,0.3608]
[1731859971081,0.00012057,90206.0,90199.0,0.33141836]
[1731859971282,0.09552369,90203.0,90199.0,0.33141836]
[1731859971479,0.055429,90200.0,90199.0,0.33141836]
[1731859972878,0.055429,90200.0,90196.0,0.26550944]
[1731859974878,0.09552369,90203.0,90196.0,0.26550944]
[1731859975077,0.05543,90198.0,90196.0,0.26550944]
[1731859975874,0.055431,90197.0,90196.0,0.26550944]
[1731859976075,0.086731,90197.0,90196.0,0.26550944]
[1731859976973,0.447531,90197.0,90196.0,0.26550944]
[1731859977985,0.3921,90197.0,90188.0,0.055436]
[1731859978176,0.055436,90189.0,90188.0,0.055436]
[1731859980989,0.03190001,90197.0,90182.0,0.62746944]
[1731859981190,0.1323129,90199.0,90196.0,0.055432]
[1731859981388,0.1877429,90199.0,90196.0,0.055432]
[1731859981594,0.1323129,90199.0,90196.0,0.055432]
[1731859981883,0.055431,90198.0,90196.0,0.055432]
[1731859982986,0.03052057,90206.0,90193.0,0.3608]
[1731859982987,0.16283347,90206.0,90193.0,0.3608]
[1731859983188,0.055431,90197.0,90193.0,0.3608]
[1731859983889,0.055431,90197.0,90193.0,0.416233]
[1731859984185,0.16283347,90206.0,90188.0,0.26550944]
[1731859984186,0.055433,90194.0,90188.0,0.26550944]
[1731859984389,0.055438,90186.0,90184.0,0.26550944]
[1731859984591,0.055438,90186.0,90183.0,0.26550944]
[1731859984789,0.09552369,90188.0,90180.0,0.055441]
[1731859984979,0.05544,90183.0,90180.0,0.055441]
[1731859985187,0.055441,90180.0,90179.0,0.26550944]
[1731859985685,0.055441,90180.0,90178.0,0.26550944]
[1731859986082,0.055441,90180.0,90179.0,0.26550944]
[1731859986384,0.055441,90180.0,90178.0,0.26550944]
[1731859987088,0.055439,90184.0,90178.0,0.32095244]
[1731859987391,0.05544,90183.0,90180.0,0.26550944]
[1731859987587,0.05544,90183.0,90181.0,0.26550944]
[1731859987994,0.05544,90183.0,90180.0,0.26550944]
[1731859990694,0.05544,90183.0,90181.0,0.26550944]
[1731859991085,0.05544,90183.0,90182.0,0.26550944]
[1731859991491,0.05544,90183.0,90181.0,0.26550944]
[1731859991694,0.09552369,90182.0,90175.0,0.26550944]
[1731859991992,0.055445,90174.0,90171.0,0.29650944]
[1731859992193,0.055444,90176.0,90171.0,0.031]
[1731859992399,0.055446,90173.0,90170.0,0.32095644]
[1731859992584,0.09552369,90182.0,90170.0,0.055447]
[1731859992789,0.055447,90172.0,90170.0,0.055447]
[1731859993201,0.1323129,90180.0,90167.0,0.26550944]
[1731859993400,0.055449,90168.0,90167.0,0.26550944]
[1731859993595,0.1323129,90180.0,90167.0,0.26550944]
[1731859993596,0.0052,90178.0,90167.0,0.26550944]
[1731859993786,0.055447,90171.0,90168.0,0.055449]
[1731859994091,0.055448,90169.0,90168.0,0.055449]
[1731859995003,0.3608,90169.0,90163.0,0.0878]
[1731859995294,0.055452,90162.0,90161.0,0.00116]
[1731859995486,0.09552369,90165.0,90156.0,0.32096544]
[1731859995687,0.055451,90164.0,90156.0,1.555456]
[1731859995891,0.09552369,90165.0,90156.0,1.555456]
[1731859996096,0.055454,90160.0,90156.0,1.555456]
[1731859996303,0.15097969,90157.0,90156.0,1.5]
[1731859996501,0.055457,90155.0,90154.0,0.00012125]
[1731859998897,0.09552369,90157.0,90154.0,0.00012125]
[1731859999197,0.055454,90159.0,90156.0,0.055456]
[1731859999997,0.09552369,90158.0,90156.0,0.055456]
[1731860001496,0.3608,90169.0,90154.0,0.00012125]
[1731860001700,0.3608,90169.0,90155.0,0.0104045]
[1731860002000,0.09718746,90180.0,90161.0,0.7216]
[1731860002308,0.055442,90179.0,90173.0,0.055445]
[1731860002600,0.00166377,90180.0,90177.0,0.055443]
[1731860003400,0.00166377,90180.0,90174.0,1.5012]
[1731860003401,0.055443,90178.0,90174.0,1.5012]
[1731860003597,0.05545,90166.0,90162.0,0.0962]
[1731860003786,0.055447,90171.0,90163.0,0.01040315]
[1731860004088,0.055447,90171.0,90170.0,0.3608]
[1731860004289,0.055447,90171.0,90164.0,1.50116]
[1731860004496,0.055447,90171.0,90164.0,1.555451]
[1731860004702,0.055449,90169.0,90164.0,1.5]
[1731860005288,0.055449,90168.0,90164.0,1.5]
[1731860007786,0.02791069,90175.0,90164.0,1.5]
[1731860007999,0.05545,90166.0,90164.0,1.5]
[1731860009302,0.05545,90166.0,90162.0,0.0318]
[1731860011094,0.055451,90165.0,90162.0,0.0318]
[1731860011490,0.09552369,90169.0,90162.0,0.0318]
[1731860011692,0.055451,90164.0,90162.0,0.0318]
[1731860012526,0.09552369,90169.0,90162.0,0.0318]
[1731860012696,0.055454,90159.0,90158.0,0.26666944]
[1731860013000,0.055454,90159.0,90152.0,0.38299602]
[1731860013001,0.055457,90155.0,90152.0,0.38299602]
[1731860013297,0.055457,90155.0,90149.0,0.29840944]
[1731860013298,0.055457,90155.0,90150.0,0.26550944]
[1731860013509,0.055457,90155.0,90149.0,0.0329]
[1731860014201,0.055457,90155.0,90149.0,0.29840944]
[1731860014502,0.055457,90155.0,90149.0,0.08836]
[1731860014690,0.055457,90155.0,90149.0,0.35386944]
[1731860014891,0.055457,90155.0,90149.0,0.08836]
[1731860015104,0.055457,90155.0,90149.0,0.35386944]
[1731860015290,0.055457,90155.0,90150.0,0.26550944]
[1731860015802,0.055457,90155.0,90149.0,0.35386944]
[1731860016902,0.055457,90155.0,90149.0,0.08836]
[1731860017087,0.055457,90155.0,90149.0,0.26550944]
[1731860017293,0.055457,90155.0,90147.0,0.26550944]
[1731860017599,0.055457,90155.0,90146.0,0.26550944]
[1731860018897,0.055457,90155.0,90145.0,0.055463]
[1731860018898,0.055457,90155.0,90145.0,0.32097244]
[1731860019098,0.055457,90155.0,90146.0,0.32097144]
[1731860019302,0.055457,90155.0,90147.0,0.055462]
[1731860019503,0.055457,90155.0,90148.0,1.5]
[1731860019803,0.055457,90155.0,90148.0,1.50116]
[1731860020195,0.055457,90155.0,90148.0,0.00116]
[1731860020406,0.055457,90155.0,90147.0,0.32097044]
[1731860020790,0.055457,90155.0,90148.0,1.5]
[1731860020994,0.055457,90155.0,90148.0,1.50116]
[1731860021389,0.055457,90155.0,90148.0,1.82213044]
[1731860021599,0.055457,90155.0,90149.0,0.05546]
[1731860022707,0.055457,90155.0,90148.0,1.76666944]
[1731860022905,0.055457,90155.0,90150.0,0.055459]
[1731860024097,0.055457,90155.0,90148.0,1.76666944]
[1731860024296,0.055457,90155.0,90148.0,1.50116]
[1731860025495,0.055457,90155.0,90149.0,0.05546]
[1731860027097,0.055457,90155.0,90148.0,1.76666944]
[1731860027396,0.055457,90155.0,90148.0,1.50116]
[1731860028203,0.055457,90155.0,90149.0,0.05546]
[1731860028602,0.055457,90155.0,90148.0,0.26666944]
[1731860028906,0.055457,90155.0,90148.0,0.26550944]
[1731860029298,0.15109259,90155.0,90143.0,0.62630944]
[1731860029505,0.15109259,90155.0,90144.0,0.0052]
[1731860030005,0.0555689,90155.0,90144.0,0.0052]
[1731860030203,0.09552369,90145.0,90139.0,0.0052]
[1731860030402,0.3608,90149.0,90129.0,0.33141836]
[1731860030403,0.09552369,90140.0,90136.0,0.26550944]
[1731860030601,0.055469,90135.0,90134.0,0.26550944]
[1731860030803,0.05547,90134.0,90133.0,0.26550944]
[1731860031003,0.05547,90134.0,90133.0,0.32110593]
[1731860031206,0.05547,90134.0,90133.0,0.05559649]
[1731860031495,0.055467,90139.0,90138.0,0.055467]
[1731860031700,0.09552369,90140.0,90133.0,0.00012649]
[1731860031897,0.055468,90137.0,90134.0,0.05547]
[1731860032215,0.055468,90136.0,90134.0,0.05547]
[1731860032414,0.055469,90135.0,90134.0,0.05547]
[1731860032622,0.055469,90135.0,90133.0,0.00012649]
[1731860033113,0.055469,90135.0,90134.0,0.05547]
[1731860038210,0.17856524,90140.0,90135.0,0.055469]
[1731860038708,0.055467,90139.0,90135.0,0.055469]
[1731860038907,0.05710577,90180.0,90136.0,1.5]
[1731860039107,0.0052,90152.0,90151.0,0.055459]
[1731860039308,0.0321,90162.0,90154.0,0.055457]
[1731860039617,0.06052781,90162.0,90154.0,0.416257]
[1731860039814,0.06052781,90162.0,90154.0,1.916257]
[1731860040518,0.0052,90167.0,90154.0,1.916257]
[1731860040816,0.055451,90165.0,90154.0,1.916257]